[Event "Titled Tuesday Blitz March 08 Early 2022"]
[White "Horak, Martin"]
[Black "Golubka, Petro"]
[WhiteFideId "367095"]
[BlackFideId "14114224"]
[WhiteElo "1997"]
[BlackElo "2346"]
[Result "0-1"]
[Round "03"]
[TimeControl "180+1"]
[Date "2022.03.09"]
[WhiteClock "0:00:21"]
[BlackClock "0:01:17"]

1. d4 {[%clk 0:02:32]}  d5 {[%clk 0:02:54]} 2. c4 {[%clk 0:02:32]}  dxc4 {[%clk 0:02:49]} 3. e4 {[%clk 0:02:29]}  e5 {[%clk 0:02:49]} 4. Nf3 {[%clk 0:02:29]}  exd4 {[%clk 0:02:48]} 5. Bxc4 {[%clk 0:02:29]}  Bb4+ {[%clk 0:02:46]} 6. Nbd2 {[%clk 0:02:12]}  Nc6 {[%clk 0:02:45]} 7. O-O {[%clk 0:02:09]}  Nf6 {[%clk 0:02:25]} 8. a3 {[%clk 0:01:37]}  Be7 {[%clk 0:02:10]} 9. e5 {[%clk 0:01:27]}  Ng4 {[%clk 0:01:40]} 10. Re1 {[%clk 0:01:22]}  O-O {[%clk 0:01:39]} 11. h3 {[%clk 0:01:15]}  Nh6 {[%clk 0:01:38]} 12. Nb3 {[%clk 0:01:13]}  Nf5 {[%clk 0:01:32]} 13. g4 {[%clk 0:01:00]}  Nh4 {[%clk 0:01:30]} 14. Nfxd4 {[%clk 0:00:55]}  Nxd4 {[%clk 0:01:29]} 15. Nxd4 {[%clk 0:00:21]}  Qxd4 {[%clk 0:01:17]} 0-1


[Site "https://www.chess.com"]

[Event "Titled Tuesday Blitz March 08 Early 2022"]
[White "Istvanovszki, Martin"]
[Black "Fedoseev, Vladimir"]
[WhiteFideId "726958"]
[BlackFideId "24130737"]
[WhiteElo "2524"]
[BlackElo "2979"]
[Result "0-1"]
[Round "03"]
[TimeControl "180+1"]
[Date "2022.03.09"]
[WhiteClock "0:00:10"]
[BlackClock "0:00:14"]

1. e4 {[%clk 0:02:58]}  c5 {[%clk 0:02:59]} 2. Nc3 {[%clk 0:02:57]}  d6 {[%clk 0:02:59]} 3. f4 {[%clk 0:02:57]}  g6 {[%clk 0:02:57]} 4. Nf3 {[%clk 0:02:57]}  Bg7 {[%clk 0:02:58]} 5. Bc4 {[%clk 0:02:57]}  Nc6 {[%clk 0:02:57]} 6. O-O {[%clk 0:02:57]}  a6 {[%clk 0:02:48]} 7. d3 {[%clk 0:02:53]}  b5 {[%clk 0:02:46]} 8. Bd5 {[%clk 0:02:30]}  Bb7 {[%clk 0:02:44]} 9. Bxf7+ {[%clk 0:01:59]}  Kxf7 {[%clk 0:02:41]} 10. Ng5+ {[%clk 0:01:59]}  Ke8 {[%clk 0:02:42]} 11. Ne6 {[%clk 0:01:58]}  Bd4+ {[%clk 0:02:43]} 12. Kh1 {[%clk 0:01:56]}  Qd7 {[%clk 0:02:34]} 13. Nd5 {[%clk 0:01:55]}  Nf6 {[%clk 0:02:23]} 14. Ndc7+ {[%clk 0:01:24]}  Kf7 {[%clk 0:02:20]} 15. f5 {[%clk 0:01:17]}  Rac8 {[%clk 0:01:51]} 16. Nd5 {[%clk 0:01:04]}  gxf5 {[%clk 0:01:13]} 17. exf5 {[%clk 0:00:48]}  Ne5 {[%clk 0:01:06]} 18. Ng5+ {[%clk 0:00:28]}  Ke8 {[%clk 0:01:04]} 19. Nxf6+ {[%clk 0:00:28]}  exf6 {[%clk 0:01:05]} 20. Qh5+ {[%clk 0:00:28]}  Ke7 {[%clk 0:01:04]} 21. Re1 {[%clk 0:00:26]}  Rcg8 {[%clk 0:00:48]} 22. Qf7+ {[%clk 0:00:25]}  Kd8 {[%clk 0:00:48]} 23. Ne6+ {[%clk 0:00:24]}  Kc8 {[%clk 0:00:47]} 24. Qxd7+ {[%clk 0:00:18]}  Kxd7 {[%clk 0:00:47]} 25. Re2 {[%clk 0:00:18]}  Ng4 {[%clk 0:00:35]} 26. c3 {[%clk 0:00:18]}  Nf2+ {[%clk 0:00:18]} 27. Kg1 {[%clk 0:00:15]}  Bxg2 {[%clk 0:00:18]} 28. Rxf2 {[%clk 0:00:14]}  Bh3+ {[%clk 0:00:16]} 29. Bg5 {[%clk 0:00:11]}  Bxf2+ {[%clk 0:00:15]} 30. Kxf2 {[%clk 0:00:11]}  fxg5 {[%clk 0:00:16]} 31. d4 {[%clk 0:00:11]}  Bxf5 {[%clk 0:00:16]} 32. dxc5 {[%clk 0:00:10]}  Bxe6 {[%clk 0:00:15]} 33. Rd1 {[%clk 0:00:10]}  Rf8+ {[%clk 0:00:14]} 0-1


[Site "https://www.chess.com"]

[Event "Titled Tuesday Blitz March 08 Early 2022"]
[White "Izoria, Zviad"]
[Black "Jary, Sergey"]
[WhiteFideId "13601733"]
[BlackFideId "14110350"]
[WhiteElo "2626"]
[BlackElo "2260"]
[Result "1/2-1/2"]
[Round "03"]
[TimeControl "180+1"]
[Date "2022.03.08"]
[WhiteClock "0:00:09"]
[BlackClock "0:00:06"]

1. Nf3 {[%clk 0:03:00]}  Nf6 {[%clk 0:02:59]} 2. c4 {[%clk 0:03:00]}  g6 {[%clk 0:03:00]} 3. g3 {[%clk 0:02:57]}  Bg7 {[%clk 0:03:00]} 4. Bg2 {[%clk 0:02:58]}  O-O {[%clk 0:03:00]} 5. O-O {[%clk 0:02:58]}  d6 {[%clk 0:03:01]} 6. d4 {[%clk 0:02:57]}  Nc6 {[%clk 0:03:00]} 7. d5 {[%clk 0:02:52]}  Na5 {[%clk 0:02:50]} 8. Qa4 {[%clk 0:02:52]}  c5 {[%clk 0:02:47]} 9. Bd2 {[%clk 0:02:51]}  b6 {[%clk 0:02:39]} 10. Bc3 {[%clk 0:02:51]}  Bd7 {[%clk 0:02:32]} 11. Qc2 {[%clk 0:02:50]}  a6 {[%clk 0:02:33]} 12. Nbd2 {[%clk 0:02:45]}  b5 {[%clk 0:02:32]} 13. b3 {[%clk 0:02:45]}  b4 {[%clk 0:02:28]} 14. Bb2 {[%clk 0:02:44]}  e5 {[%clk 0:02:28]} 15. dxe6 {[%clk 0:02:43]}  Bxe6 {[%clk 0:02:25]} 16. Rad1 {[%clk 0:02:33]}  Rc8 {[%clk 0:02:21]} 17. Ng5 {[%clk 0:02:20]}  Bf5 {[%clk 0:02:21]} 18. Nde4 {[%clk 0:02:01]}  Nxe4 {[%clk 0:02:15]} 19. Nxe4 {[%clk 0:02:00]}  Bxe4 {[%clk 0:02:16]} 20. Bxe4 {[%clk 0:01:58]}  Bxb2 {[%clk 0:02:10]} 21. Qxb2 {[%clk 0:01:59]}  Qe7 {[%clk 0:02:10]} 22. Bf3 {[%clk 0:01:55]}  Nc6 {[%clk 0:02:11]} 23. Bxc6 {[%clk 0:01:54]}  Rxc6 {[%clk 0:02:10]} 24. Rd5 {[%clk 0:01:54]}  a5 {[%clk 0:02:05]} 25. Rfd1 {[%clk 0:01:52]}  h5 {[%clk 0:02:01]} 26. h4 {[%clk 0:01:49]}  Kh7 {[%clk 0:01:56]} 27. Qc2 {[%clk 0:01:46]}  Kg7 {[%clk 0:01:53]} 28. Qb2+ {[%clk 0:01:46]}  Kh7 {[%clk 0:01:51]} 29. Qd2 {[%clk 0:01:46]}  Rd8 {[%clk 0:01:35]} 30. Qd3 {[%clk 0:01:42]}  Kg7 {[%clk 0:01:31]} 31. e4 {[%clk 0:01:39]}  Rdc8 {[%clk 0:01:21]} 32. f3 {[%clk 0:01:34]}  Qf6 {[%clk 0:01:07]} 33. Kg2 {[%clk 0:01:26]}  Ra8 {[%clk 0:01:01]} 34. Rxd6 {[%clk 0:01:20]}  Rxd6 {[%clk 0:00:58]} 35. Qxd6 {[%clk 0:01:21]}  Qc3 {[%clk 0:00:58]} 36. Qd2 {[%clk 0:01:12]}  Qxd2+ {[%clk 0:00:54]} 37. Rxd2 {[%clk 0:01:12]}  a4 {[%clk 0:00:54]} 38. f4 {[%clk 0:01:06]}  axb3 {[%clk 0:00:51]} 39. axb3 {[%clk 0:01:07]}  Ra1 {[%clk 0:00:51]} 40. Rd3 {[%clk 0:00:53]}  Rb1 {[%clk 0:00:45]} 41. e5 {[%clk 0:00:51]}  Rb2+ {[%clk 0:00:45]} 42. Kf3 {[%clk 0:00:51]}  f5 {[%clk 0:00:41]} 43. exf6+ {[%clk 0:00:39]}  Kxf6 {[%clk 0:00:41]} 44. Ke4 {[%clk 0:00:39]}  Ke6 {[%clk 0:00:37]} 45. Re3 {[%clk 0:00:20]}  Rb1 {[%clk 0:00:34]} 46. Kf3+ {[%clk 0:00:20]}  Kf6 {[%clk 0:00:31]} 47. g4 {[%clk 0:00:17]}  hxg4+ {[%clk 0:00:28]} 48. Kxg4 {[%clk 0:00:18]}  Rg1+ {[%clk 0:00:28]} 49. Kf3 {[%clk 0:00:18]}  Rd1 {[%clk 0:00:23]} 50. Re5 {[%clk 0:00:14]}  Rd3+ {[%clk 0:00:18]} 51. Kg4 {[%clk 0:00:14]}  Rxb3 {[%clk 0:00:14]} 52. Rxc5 {[%clk 0:00:14]}  Rb1 {[%clk 0:00:09]} 53. Rc6+ {[%clk 0:00:14]}  Kg7 {[%clk 0:00:08]} 54. Rc7+ {[%clk 0:00:11]}  Kf6 {[%clk 0:00:07]} 55. Rc6+ {[%clk 0:00:11]}  Kg7 {[%clk 0:00:06]} 56. Rc7+ {[%clk 0:00:10]}  Kf6 {[%clk 0:00:06]} 57. Rc6+ {[%clk 0:00:09]} 1/2-1/2


[Site "https://www.chess.com"]

[Event "Titled Tuesday Blitz March 08 Early 2022"]
[White "Jaferian, Koosha"]
[Black "Aaditya Dhingra"]
[WhiteFideId "12507440"]
[BlackFideId "25678191"]
[WhiteElo "2030"]
[BlackElo "1849"]
[Result "1-0"]
[Round "03"]
[TimeControl "180+1"]
[Date "2022.03.09"]
[WhiteClock "0:00:47"]
[BlackClock "0:00:10"]

1. Nf3 {[%clk 0:03:00]}  Nf6 {[%clk 0:02:58]} 2. b3 {[%clk 0:03:01]}  g6 {[%clk 0:02:56]} 3. Bb2 {[%clk 0:03:01]}  Bg7 {[%clk 0:02:56]} 4. g3 {[%clk 0:03:02]}  b6 {[%clk 0:02:54]} 5. Bg2 {[%clk 0:03:02]}  Bb7 {[%clk 0:02:54]} 6. O-O {[%clk 0:03:02]}  O-O {[%clk 0:02:54]} 7. c4 {[%clk 0:03:02]}  c5 {[%clk 0:02:51]} 8. d4 {[%clk 0:03:03]}  cxd4 {[%clk 0:02:50]} 9. Nxd4 {[%clk 0:03:03]}  Bxg2 {[%clk 0:02:50]} 10. Kxg2 {[%clk 0:03:04]}  d6 {[%clk 0:02:50]} 11. Nc3 {[%clk 0:03:04]}  Qc8 {[%clk 0:02:47]} 12. Qd2 {[%clk 0:03:03]}  Nc6 {[%clk 0:02:46]} 13. Rfd1 {[%clk 0:03:02]}  Nxd4 {[%clk 0:02:44]} 14. Qxd4 {[%clk 0:03:03]}  Qb7+ {[%clk 0:02:41]} 15. Kg1 {[%clk 0:02:59]}  Nd7 {[%clk 0:02:37]} 16. Qd2 {[%clk 0:02:55]}  Nf6 {[%clk 0:02:25]} 17. Qe3 {[%clk 0:02:50]}  Rac8 {[%clk 0:02:19]} 18. Rac1 {[%clk 0:02:49]}  Rc5 {[%clk 0:02:16]} 19. Qd4 {[%clk 0:02:38]}  Rh5 {[%clk 0:01:56]} 20. Nd5 {[%clk 0:02:31]}  Re8 {[%clk 0:01:47]} 21. h4 {[%clk 0:02:17]}  Re5 {[%clk 0:01:28]} 22. Qd2 {[%clk 0:02:02]}  Rf5 {[%clk 0:01:26]} 23. Bxf6 {[%clk 0:01:56]}  Bxf6 {[%clk 0:01:24]} 24. e4 {[%clk 0:01:56]}  Re5 {[%clk 0:01:22]} 25. Nxf6+ {[%clk 0:01:56]}  exf6 {[%clk 0:01:22]} 26. Qxd6 {[%clk 0:01:52]}  R5e6 {[%clk 0:01:17]} 27. Qf4 {[%clk 0:01:47]}  Kg7 {[%clk 0:00:59]} 28. f3 {[%clk 0:01:45]}  Re5 {[%clk 0:00:59]} 29. Rd5 {[%clk 0:01:40]}  Qe7 {[%clk 0:00:51]} 30. Rcd1 {[%clk 0:01:35]}  Qa3 {[%clk 0:00:49]} 31. Qd2 {[%clk 0:01:33]}  Rxd5 {[%clk 0:00:44]} 32. cxd5 {[%clk 0:01:29]}  f5 {[%clk 0:00:41]} 33. Qd4+ {[%clk 0:01:21]}  Kg8 {[%clk 0:00:37]} 34. h5 {[%clk 0:01:13]}  Qd6 {[%clk 0:00:32]} 35. Kg2 {[%clk 0:01:09]}  fxe4 {[%clk 0:00:30]} 36. fxe4 {[%clk 0:01:10]}  f5 {[%clk 0:00:30]} 37. h6 {[%clk 0:01:07]}  Re7 {[%clk 0:00:24]} 38. Rc1 {[%clk 0:01:02]}  Qd8 {[%clk 0:00:16]} 39. d6 {[%clk 0:00:59]}  Rd7 {[%clk 0:00:13]} 40. e5 {[%clk 0:00:59]}  Qa8+ {[%clk 0:00:13]} 41. Kh2 {[%clk 0:00:58]}  Qf3 {[%clk 0:00:10]} 42. Qc4+ {[%clk 0:00:47]} 1-0


[Site "https://www.chess.com"]

[Event "Titled Tuesday Blitz March 08 Early 2022"]
[White "Jakubowska, Anna"]
[Black "Pert, Richard G"]
[WhiteFideId "1121952"]
[BlackFideId "404748"]
[WhiteElo "1924"]
[BlackElo "2441"]
[Result "1/2-1/2"]
[Round "03"]
[TimeControl "180+1"]
[Date "2022.03.09"]
[WhiteClock "0:00:08"]
[BlackClock "0:00:03"]

1. e4 {[%clk 0:02:57]}  c5 {[%clk 0:02:59]} 2. Nc3 {[%clk 0:02:57]}  Nc6 {[%clk 0:02:58]} 3. g3 {[%clk 0:02:57]}  g6 {[%clk 0:02:58]} 4. Bg2 {[%clk 0:02:57]}  Bg7 {[%clk 0:02:59]} 5. d3 {[%clk 0:02:58]}  d6 {[%clk 0:02:59]} 6. Nh3 {[%clk 0:02:58]}  Rb8 {[%clk 0:02:56]} 7. O-O {[%clk 0:02:57]}  b5 {[%clk 0:02:55]} 8. f4 {[%clk 0:02:50]}  b4 {[%clk 0:02:53]} 9. Nd5 {[%clk 0:02:50]}  e6 {[%clk 0:02:47]} 10. Ne3 {[%clk 0:02:50]}  f5 {[%clk 0:02:42]} 11. exf5 {[%clk 0:02:49]}  Nd4 {[%clk 0:02:39]} 12. fxe6 {[%clk 0:02:41]}  Bxe6 {[%clk 0:02:39]} 13. c3 {[%clk 0:02:41]}  bxc3 {[%clk 0:02:37]} 14. bxc3 {[%clk 0:02:41]}  Nf5 {[%clk 0:02:38]} 15. Ng5 {[%clk 0:02:36]}  Bd7 {[%clk 0:02:27]} 16. Nxf5 {[%clk 0:02:35]}  Bxf5 {[%clk 0:02:22]} 17. Bc6+ {[%clk 0:02:33]}  Kf8 {[%clk 0:02:21]} 18. g4 {[%clk 0:02:09]}  Bc8 {[%clk 0:02:12]} 19. Bd2 {[%clk 0:02:04]}  h6 {[%clk 0:02:09]} 20. Ne4 {[%clk 0:02:03]}  Nf6 {[%clk 0:02:08]} 21. f5 {[%clk 0:01:56]}  gxf5 {[%clk 0:02:04]} 22. Nxf6 {[%clk 0:01:36]}  Bxf6 {[%clk 0:01:53]} 23. gxf5 {[%clk 0:01:36]}  d5 {[%clk 0:01:40]} 24. Qf3 {[%clk 0:01:35]}  Bb7 {[%clk 0:01:35]} 25. Bxb7 {[%clk 0:01:31]}  Rxb7 {[%clk 0:01:36]} 26. Kh1 {[%clk 0:01:23]}  Bg5 {[%clk 0:01:18]} 27. Be3 {[%clk 0:01:12]}  Bxe3 {[%clk 0:01:01]} 28. Qxe3 {[%clk 0:01:13]}  d4 {[%clk 0:00:57]} 29. Qe5 {[%clk 0:01:07]}  Rg8 {[%clk 0:00:42]} 30. Qxc5+ {[%clk 0:00:51]}  Qe7 {[%clk 0:00:30]} 31. cxd4 {[%clk 0:00:51]}  Rb2 {[%clk 0:00:21]} 32. Rg1 {[%clk 0:00:42]}  Rg5 {[%clk 0:00:16]} 33. Rxg5 {[%clk 0:00:39]}  hxg5 {[%clk 0:00:17]} 34. f6 {[%clk 0:00:35]}  Qxc5 {[%clk 0:00:15]} 35. dxc5 {[%clk 0:00:36]}  Rc2 {[%clk 0:00:12]} 36. d4 {[%clk 0:00:36]}  Kf7 {[%clk 0:00:13]} 37. Rf1 {[%clk 0:00:34]}  Rxa2 {[%clk 0:00:10]} 38. d5 {[%clk 0:00:33]}  Rc2 {[%clk 0:00:10]} 39. c6 {[%clk 0:00:31]}  a5 {[%clk 0:00:10]} 40. Ra1 {[%clk 0:00:29]}  Kxf6 {[%clk 0:00:09]} 41. Rxa5 {[%clk 0:00:28]}  Ke5 {[%clk 0:00:09]} 42. Kg1 {[%clk 0:00:26]}  g4 {[%clk 0:00:08]} 43. Rb5 {[%clk 0:00:17]}  Kd6 {[%clk 0:00:08]} 44. Ra5 {[%clk 0:00:16]}  Ke5 {[%clk 0:00:07]} 45. Kf1 {[%clk 0:00:16]}  Kd6 {[%clk 0:00:05]} 46. Ra4 {[%clk 0:00:12]}  Kxd5 {[%clk 0:00:05]} 47. Rxg4 {[%clk 0:00:12]}  Rxc6 {[%clk 0:00:05]} 48. Rf4 {[%clk 0:00:12]}  Ke5 {[%clk 0:00:05]} 49. Rf2 {[%clk 0:00:12]}  Rg6 {[%clk 0:00:05]} 50. Rf3 {[%clk 0:00:12]}  Ke4 {[%clk 0:00:05]} 51. Kf2 {[%clk 0:00:13]}  Rg8 {[%clk 0:00:04]} 52. Rf7 {[%clk 0:00:12]}  Ra8 {[%clk 0:00:05]} 53. h4 {[%clk 0:00:12]}  Ra2+ {[%clk 0:00:04]} 54. Kg3 {[%clk 0:00:12]}  Ra1 {[%clk 0:00:05]} 55. Kg4 {[%clk 0:00:12]}  Rg1+ {[%clk 0:00:05]} 56. Kh5 {[%clk 0:00:13]}  Ke5 {[%clk 0:00:05]} 57. Kh6 {[%clk 0:00:13]}  Ke6 {[%clk 0:00:05]} 58. Rf2 {[%clk 0:00:13]}  Ke7 {[%clk 0:00:05]} 59. h5 {[%clk 0:00:13]}  Rg4 {[%clk 0:00:05]} 60. Kh7 {[%clk 0:00:13]}  Rg1 {[%clk 0:00:05]} 61. h6 {[%clk 0:00:14]}  Rg3 {[%clk 0:00:05]} 62. Kh8 {[%clk 0:00:14]}  Rg1 {[%clk 0:00:06]} 63. Rf4 {[%clk 0:00:13]}  Rg2 {[%clk 0:00:06]} 64. Kh7 {[%clk 0:00:12]}  Rg1 {[%clk 0:00:06]} 65. Ra4 {[%clk 0:00:08]}  Kf7 {[%clk 0:00:05]} 66. Ra7+ {[%clk 0:00:08]}  Kf8 {[%clk 0:00:05]} 67. Rg7 {[%clk 0:00:08]}  Rf1 {[%clk 0:00:06]} 68. Rg6 {[%clk 0:00:08]}  Rf2 {[%clk 0:00:05]} 69. Rg5 {[%clk 0:00:08]}  Rf3 {[%clk 0:00:05]} 70. Rg4 {[%clk 0:00:08]}  Rf6 {[%clk 0:00:04]} 71. Rg6 {[%clk 0:00:08]}  Rf4 {[%clk 0:00:04]} 72. Rg5 {[%clk 0:00:08]}  Rf6 {[%clk 0:00:04]} 73. Rg8+ {[%clk 0:00:07]}  Kf7 {[%clk 0:00:04]} 74. Rg7+ {[%clk 0:00:08]}  Kf8 {[%clk 0:00:04]} 75. Rg4 {[%clk 0:00:08]}  Rf5 {[%clk 0:00:04]} 76. Rg6 {[%clk 0:00:08]}  Rf7+ {[%clk 0:00:03]} 77. Rg7 {[%clk 0:00:08]}  Rf6 {[%clk 0:00:04]} 78. Rg5 {[%clk 0:00:08]}  Rf3 {[%clk 0:00:03]} 79. Rg7 {[%clk 0:00:08]}  Rf6 {[%clk 0:00:03]} 1/2-1/2


[Site "https://www.chess.com"]

[Event "Titled Tuesday Blitz March 08 Early 2022"]
[White "Jones, Gawain C B"]
[Black "Bayramov, Zaur"]
[WhiteFideId "409561"]
[BlackFideId "13405080"]
[WhiteElo "2834"]
[BlackElo "2599"]
[Result "1-0"]
[Round "03"]
[TimeControl "180+1"]
[Date "2022.03.09"]
[WhiteClock "0:00:06"]
[BlackClock "0:00:17"]

1. Nf3 {[%clk 0:03:00]}  g6 {[%clk 0:02:59]} 2. d4 {[%clk 0:02:59]}  Bg7 {[%clk 0:03:00]} 3. e4 {[%clk 0:02:59]}  d6 {[%clk 0:02:58]} 4. Bd3 {[%clk 0:02:58]}  Nc6 {[%clk 0:02:57]} 5. c3 {[%clk 0:02:58]}  e5 {[%clk 0:02:57]} 6. Be3 {[%clk 0:02:58]}  Nf6 {[%clk 0:02:58]} 7. h3 {[%clk 0:02:58]}  O-O {[%clk 0:02:58]} 8. d5 {[%clk 0:02:52]}  Ne7 {[%clk 0:02:58]} 9. c4 {[%clk 0:02:53]}  h6 {[%clk 0:02:55]} 10. g4 {[%clk 0:02:50]}  Nd7 {[%clk 0:02:43]} 11. Rg1 {[%clk 0:02:50]}  Nc5 {[%clk 0:02:40]} 12. Bc2 {[%clk 0:02:46]}  a5 {[%clk 0:02:40]} 13. Nc3 {[%clk 0:02:44]}  Kh7 {[%clk 0:02:40]} 14. Qd2 {[%clk 0:02:34]}  b6 {[%clk 0:02:38]} 15. h4 {[%clk 0:02:23]}  Bd7 {[%clk 0:02:33]} 16. h5 {[%clk 0:02:18]}  g5 {[%clk 0:02:26]} 17. b3 {[%clk 0:02:02]}  Qc8 {[%clk 0:02:25]} 18. Nh2 {[%clk 0:01:58]}  Ng8 {[%clk 0:02:22]} 19. Rg3 {[%clk 0:01:47]}  Nf6 {[%clk 0:02:20]} 20. Qe2 {[%clk 0:01:39]}  Rd8 {[%clk 0:02:15]} 21. Kf1 {[%clk 0:01:36]}  Qb7 {[%clk 0:02:12]} 22. Kg1 {[%clk 0:01:33]}  c6 {[%clk 0:02:12]} 23. Rd1 {[%clk 0:01:26]}  cxd5 {[%clk 0:02:12]} 24. exd5+ {[%clk 0:01:26]}  Kh8 {[%clk 0:02:11]} 25. Bxc5 {[%clk 0:01:26]}  bxc5 {[%clk 0:02:05]} 26. Qd3 {[%clk 0:01:19]}  Kg8 {[%clk 0:01:56]} 27. Ne4 {[%clk 0:01:18]}  Nxe4 {[%clk 0:01:52]} 28. Qxe4 {[%clk 0:01:18]}  a4 {[%clk 0:01:53]} 29. Qh7+ {[%clk 0:01:14]}  Kf8 {[%clk 0:01:52]} 30. Rf3 {[%clk 0:01:12]}  axb3 {[%clk 0:01:51]} 31. axb3 {[%clk 0:01:02]}  Ra2 {[%clk 0:01:50]} 32. Bg6 {[%clk 0:00:54]}  Be8 {[%clk 0:01:48]} 33. Nf1 {[%clk 0:00:52]}  Rda8 {[%clk 0:01:32]} 34. Ng3 {[%clk 0:00:49]}  Ra1 {[%clk 0:01:27]} 35. Rxa1 {[%clk 0:00:49]}  Rxa1+ {[%clk 0:01:27]} 36. Kg2 {[%clk 0:00:49]}  e4 {[%clk 0:00:55]} 37. Nxe4 {[%clk 0:00:41]}  Qe7 {[%clk 0:00:36]} 38. Bf5 {[%clk 0:00:18]}  Re1 {[%clk 0:00:31]} 39. Be6 {[%clk 0:00:17]}  Ra1 {[%clk 0:00:23]} 40. Ng3 {[%clk 0:00:17]}  Ra7 {[%clk 0:00:19]} 41. Nf5 {[%clk 0:00:16]}  Qf6 {[%clk 0:00:19]} 42. Nxd6 {[%clk 0:00:13]}  Qe5 {[%clk 0:00:18]} 43. Nxe8 {[%clk 0:00:08]}  Kxe8 {[%clk 0:00:19]} 44. Qg8+ {[%clk 0:00:07]}  Bf8 {[%clk 0:00:18]} 45. Bxf7+ {[%clk 0:00:06]}  Ke7 {[%clk 0:00:17]} 46. Re3 {[%clk 0:00:06]} 1-0


[Site "https://www.chess.com"]

[Event "Titled Tuesday Blitz March 08 Early 2022"]
[White "Jumabayev, Rinat"]
[Black "Plotnikov, Pavel"]
[WhiteFideId "13702661"]
[BlackFideId "4170342"]
[WhiteElo "2561"]
[BlackElo "2298"]
[Result "1-0"]
[Round "03"]
[TimeControl "180+1"]
[Date "2022.03.09"]
[WhiteClock "0:00:18"]
[BlackClock "0:00:16"]

1. Nf3 {[%clk 0:03:00]}  Nf6 {[%clk 0:02:59]} 2. c4 {[%clk 0:03:01]}  g6 {[%clk 0:02:59]} 3. d4 {[%clk 0:03:00]}  Bg7 {[%clk 0:02:59]} 4. Nc3 {[%clk 0:03:01]}  O-O {[%clk 0:02:59]} 5. e4 {[%clk 0:03:01]}  d6 {[%clk 0:03:00]} 6. Be2 {[%clk 0:03:01]}  Nbd7 {[%clk 0:03:00]} 7. O-O {[%clk 0:03:01]}  e5 {[%clk 0:03:00]} 8. Be3 {[%clk 0:03:01]}  c6 {[%clk 0:02:56]} 9. d5 {[%clk 0:02:56]}  Qc7 {[%clk 0:02:52]} 10. Rc1 {[%clk 0:02:46]}  a5 {[%clk 0:02:51]} 11. dxc6 {[%clk 0:02:39]}  bxc6 {[%clk 0:02:52]} 12. c5 {[%clk 0:02:39]}  Nxc5 {[%clk 0:02:48]} 13. Bxc5 {[%clk 0:02:18]}  dxc5 {[%clk 0:02:49]} 14. Qc2 {[%clk 0:02:18]}  Nh5 {[%clk 0:02:19]} 15. g3 {[%clk 0:02:01]}  f5 {[%clk 0:02:10]} 16. Na4 {[%clk 0:01:50]}  fxe4 {[%clk 0:01:49]} 17. Qxe4 {[%clk 0:01:40]}  Kh8 {[%clk 0:01:37]} 18. Nxc5 {[%clk 0:01:31]}  Bf5 {[%clk 0:01:34]} 19. Qe3 {[%clk 0:01:27]}  Nf6 {[%clk 0:01:30]} 20. Nh4 {[%clk 0:01:15]}  Bh3 {[%clk 0:01:21]} 21. Rfe1 {[%clk 0:01:04]}  Qf7 {[%clk 0:01:17]} 22. Bc4 {[%clk 0:00:50]}  Nd5 {[%clk 0:01:17]} 23. Qe2 {[%clk 0:00:49]}  Rae8 {[%clk 0:01:08]} 24. Ne4 {[%clk 0:00:49]}  Qe7 {[%clk 0:00:53]} 25. Ng2 {[%clk 0:00:46]}  h5 {[%clk 0:00:38]} 26. Rcd1 {[%clk 0:00:46]}  Bg4 {[%clk 0:00:38]} 27. Qc2 {[%clk 0:00:42]}  Bxd1 {[%clk 0:00:36]} 28. Rxd1 {[%clk 0:00:43]}  Rd8 {[%clk 0:00:23]} 29. Nh4 {[%clk 0:00:42]}  Kh7 {[%clk 0:00:20]} 30. Nc3 {[%clk 0:00:19]}  Nb4 {[%clk 0:00:16]} 31. Qxg6+ {[%clk 0:00:18]} 1-0


[Site "https://www.chess.com"]

[Event "Titled Tuesday Blitz March 08 Early 2022"]
[White "Kaganskiy, Gleb"]
[Black "Msellek, Ilyass"]
[WhiteFideId "4132025"]
[BlackFideId "675938"]
[WhiteElo "2165"]
[BlackElo "2219"]
[Result "1-0"]
[Round "03"]
[TimeControl "180+1"]
[Date "2022.03.09"]
[WhiteClock "0:00:22"]
[BlackClock "0:00:04"]

1. e4 {[%clk 0:02:25]}  e5 {[%clk 0:02:59]} 2. Nf3 {[%clk 0:02:25]}  Nc6 {[%clk 0:02:58]} 3. Bc4 {[%clk 0:02:25]}  Nf6 {[%clk 0:02:54]} 4. d4 {[%clk 0:02:23]}  exd4 {[%clk 0:02:53]} 5. Ng5 {[%clk 0:02:23]}  Ne5 {[%clk 0:02:32]} 6. Bb3 {[%clk 0:02:18]}  h6 {[%clk 0:02:27]} 7. f4 {[%clk 0:02:19]}  hxg5 {[%clk 0:02:24]} 8. fxe5 {[%clk 0:02:20]}  Nxe4 {[%clk 0:02:25]} 9. Qxd4 {[%clk 0:02:20]}  Nc5 {[%clk 0:02:14]} 10. O-O {[%clk 0:02:19]}  Nxb3 {[%clk 0:02:08]} 11. axb3 {[%clk 0:02:18]}  d5 {[%clk 0:02:08]} 12. Nc3 {[%clk 0:02:18]}  Be6 {[%clk 0:02:04]} 13. Rxa7 {[%clk 0:02:18]}  Rxa7 {[%clk 0:02:00]} 14. Qxa7 {[%clk 0:02:17]}  b6 {[%clk 0:01:45]} 15. Be3 {[%clk 0:01:54]}  g4 {[%clk 0:01:40]} 16. Nb5 {[%clk 0:01:39]}  Kd7 {[%clk 0:01:01]} 17. Bxb6 {[%clk 0:01:31]}  Bb4 {[%clk 0:00:26]} 18. c3 {[%clk 0:01:17]}  Qb8 {[%clk 0:00:16]} 19. cxb4 {[%clk 0:01:09]}  Qxb6+ {[%clk 0:00:15]} 20. Qxb6 {[%clk 0:01:06]}  cxb6 {[%clk 0:00:16]} 21. Rc1 {[%clk 0:01:05]}  Rc8 {[%clk 0:00:10]} 22. Rxc8 {[%clk 0:00:56]}  Kxc8 {[%clk 0:00:11]} 23. Kf2 {[%clk 0:00:46]}  Bf5 {[%clk 0:00:08]} 24. Nd6+ {[%clk 0:00:43]}  Kd7 {[%clk 0:00:08]} 25. Nxf5 {[%clk 0:00:43]}  Ke6 {[%clk 0:00:09]} 26. Nd6 {[%clk 0:00:31]}  Kxe5 {[%clk 0:00:10]} 27. Nc8 {[%clk 0:00:32]}  b5 {[%clk 0:00:05]} 28. Na7 {[%clk 0:00:32]}  Ke4 {[%clk 0:00:05]} 29. Nxb5 {[%clk 0:00:31]}  Kd3 {[%clk 0:00:06]} 30. Na3 {[%clk 0:00:27]}  Kd2 {[%clk 0:00:02]} 31. b5 {[%clk 0:00:26]}  d4 {[%clk 0:00:03]} 32. b6 {[%clk 0:00:26]}  d3 {[%clk 0:00:04]} 33. b7 {[%clk 0:00:26]}  Kc1 {[%clk 0:00:05]} 34. Nc4 {[%clk 0:00:26]}  f5 {[%clk 0:00:05]} 35. b8=Q {[%clk 0:00:25]}  g5 {[%clk 0:00:04]} 36. Qg8 {[%clk 0:00:25]}  Kc2 {[%clk 0:00:03]} 37. Qxg5 {[%clk 0:00:24]}  Kxb3 {[%clk 0:00:04]} 38. Qxf5 {[%clk 0:00:23]}  Kxc4 {[%clk 0:00:04]} 39. Ke3 {[%clk 0:00:22]}  Kb3 {[%clk 0:00:04]} 1-0


[Site "https://www.chess.com"]